bitfinex-derivatives/quotes_SOLF0:USTF0_20240920
["timestamp","ask_amount","ask_price","bid_price","bid_amount"]
[1726811444679,1.6806,148.05,147.99,16.2]
[1726811444885,17.8995,148.07,147.99,16.2]
[1726811445384,3.3769,148.06,148.01,3.3778]
[1726811445980,3.3771,148.05,148.01,3.3778]
[1726811446581,1.7505,148.1,148.02,16.2]
[1726811447885,3.3766,148.07,148.03,3.3773]
[1726811449783,3.3766,148.07,148.02,16.2]
[1726811449784,3.3766,148.07,148.02,19.5777]
[1726811450183,3.3766,148.07,148.02,19.0777]
[1726811450385,1.7505,148.1,148.0,3.3781]
[1726811450386,3.40643096,148.09,148.0,3.3781]
[1726811450589,16.2,148.07,148.0,3.3781]
[1726811450888,3.377,148.05,148.0,3.3781]
[1726811451293,16.2,148.09,148.01,16.2]
[1726811451882,16.2,148.09,148.01,19.5779]
[1726811452085,3.3769,148.06,148.01,19.5779]
[1726811452483,3.3769,148.06,148.02,3.3777]
[1726811453992,1.7505,148.1,148.03,16.2]
[1726811454392,1.7505,148.1,148.04,19.5771]
[1726811455785,3.3764,148.08,148.04,19.5771]
[1726811457597,3.3762,148.09,148.05,3.377]
[1726811458391,3.376,148.1,148.06,3.3768]
[1726811458596,3.376,148.1,148.04,16.2]
[1726811458895,16.2,148.13,148.04,16.2]
[1726811459091,16.2,148.13,148.03,1.6231]
[1726811459092,16.2,148.11,148.02,1.6762]
[1726811459598,1.6883,148.1,148.02,1.6762]
[1726811459790,1.6883,148.1,148.02,5.0538]
[1726811460195,3.3767,148.07,148.02,5.0538]
[1726811460695,3.3767,148.07,148.03,3.3774]
[1726811461191,1.6883,148.1,148.04,16.2]
[1726811461598,3.3765,148.08,148.04,19.5771]
[1726811461798,16.2,148.13,148.04,16.2]
[1726811462092,3.3761,148.1,148.05,3.3769]
[1726811462294,16.2,148.13,148.05,3.3769]
[1726811462890,16.2,148.13,148.06,3.3767]
[1726811463200,1.7004,148.14,148.06,19.5767]
[1726811463900,1.7004,148.14,148.06,16.2]
[1726811464199,1.772,148.15,148.08,16.2]
[1726811465094,3.375,148.14,148.09,3.3759]
[1726811465296,3.375,148.14,148.08,16.2]
[1726811465802,3.375,148.14,148.1,16.2]
[1726811465996,5.08,148.16,148.1,16.2]
[1726811466203,19.5966,148.19,148.1,16.2]
[1726811466493,19.5966,148.19,148.12,19.5753]
[1726811466494,3.3966,148.19,148.12,19.5753]
[1726811466699,3.3744,148.17,148.12,19.5753]
[1726811466898,3.3744,148.17,148.13,3.3751]
[1726811467299,3.3744,148.17,148.12,16.2]
[1726811468196,1.6597,148.19,148.09,17.9384]
[1726811468395,16.2,148.15,148.09,1.7384]
[1726811468694,16.2,148.15,148.05,16.2]
[1726811469095,3.3759,148.1,148.05,16.2]
[1726811469599,3.3759,148.1,148.05,19.5769]
[1726811469795,3.3757,148.11,148.05,16.2]
[1726811470000,16.2,148.15,148.07,16.2]
[1726811470301,3.3756,148.12,148.07,16.2]
[1726811470897,3.3756,148.12,148.07,19.5765]
[1726811472303,3.3756,148.12,148.08,3.3763]
[1726811473005,3.3752,148.13,148.09,19.5761]
[1726811474106,3.375,148.14,148.1,3.3758]
[1726811474299,3.375,148.14,148.11,16.2]
[1726811474501,1.7828,148.18,148.11,16.2]
[1726811474796,3.3749,148.15,148.11,19.5756]
[1726811475002,1.6597,148.19,148.11,16.2]
[1726811475503,1.6597,148.19,148.13,16.2]
[1726811476199,3.3744,148.17,148.13,16.2]
[1726811476407,1.6597,148.19,148.13,16.2]
[1726811476603,1.6597,148.19,148.11,19.5756]
[1726811476808,3.3748,148.15,148.11,19.5756]
[1726811477107,3.3748,148.15,148.11,16.2]
[1726811477504,1.6597,148.19,148.03,5.0886]
[1726811477505,3.375,148.14,148.09,16.2]
[1726811477709,17.8597,148.19,148.09,16.2]
[1726811477905,17.8597,148.19,148.11,16.2]
[1726811478313,1.6597,148.19,148.11,19.5756]
[1726811478504,1.6597,148.19,148.11,16.2]
[1726811478703,3.3747,148.16,148.11,16.2]
[1726811479214,3.3755,148.12,148.03,5.0886]
[1726811479512,16.2,148.16,148.09,16.2]
[1726811479712,3.3752,148.14,148.09,16.2]
[1726811480609,3.3752,148.14,148.11,16.2]
[1726811481208,1.6597,148.19,148.11,16.2]
[1726811482410,16.2,148.18,148.03,5.0886]
[1726811482609,16.2,148.16,148.07,16.2]
[1726811483008,3.376,148.1,148.05,19.5769]
[1726811483405,3.376,148.1,148.06,3.3767]
[1726811484010,3.376,148.1,148.07,3.3765]
[1726811484416,3.3839,148.15,148.07,16.2]
[1726811484609,3.3839,148.15,148.08,3.3762]
[1726811484916,3.3839,148.15,148.07,16.2]
[1726811484917,3.3752,148.13,148.07,16.2]
[1726811485111,3.3752,148.13,148.09,19.576]
[1726811486315,3.375,148.14,148.1,3.3757]
[1726811487005,3.375,148.14,148.11,16.2]
[1726811489111,16.2,148.16,148.06,16.2]
[1726811489520,3.3758,148.11,148.06,19.5766]
[1726811489716,16.2,148.12,148.03,21.3681]
[1726811490218,16.2,148.12,148.04,3.3772]
[1726811491416,3.3763,148.09,148.04,3.3772]
[1726811491613,16.2,148.12,148.04,3.3772]
[1726811492717,3.3762,148.09,148.04,3.3772]
[1726811492915,1.7126,148.13,148.04,16.2]
[1726811494111,16.2,148.12,148.03,5.1681]
[1726811495015,1.03474753,148.11,148.03,5.1681]
[1726811495916,3.3765,148.08,148.04,3.3772]
[1726811496622,3.3771,148.05,148.01,3.3779]
[1726811496823,16.2,148.06,147.98,1.6187]
[1726811497114,3.3778,148.02,147.98,1.6187]
[1726811497320,3.3778,148.02,147.98,4.9973]
[1726811497522,16.2,148.06,147.98,4.9973]
[1726811497918,3.3775,148.03,147.98,4.9973]
[1726811498825,1.7407,148.07,148.0,16.2]
[1726811499025,16.2,148.11,148.0,16.2]
[1726811499220,1.03484499,148.1,148.02,3.3775]
[1726811499427,3.3767,148.07,148.02,3.3775]
[1726811499626,16.2,148.11,148.02,3.3775]
[1726811499826,1.0348781,148.1,148.03,3.3773]
[1726811500026,1.0348781,148.1,148.0,16.2]
[1726811500027,16.2,148.12,148.02,16.2]
[1726811500429,16.2,148.12,148.04,16.2]
[1726811500628,16.2,148.12,148.05,3.377]
[1726811501025,16.2,148.12,148.04,16.2]
[1726811501222,3.3763,148.09,148.04,19.5771]
[1726811501724,3.3763,148.09,148.05,3.377]
[1726811503730,3.3765,148.08,148.04,19.5772]
[1726811503931,3.3765,148.08,148.04,3.3772]
[1726811504231,16.2,148.12,148.02,16.2]
[1726811504421,3.3767,148.07,148.03,3.3774]
[1726811505632,3.3767,148.07,148.04,3.3772]
[1726811506527,3.377,148.06,148.02,19.5775]
[1726811506728,16.2,148.12,148.02,16.2]
[1726811506931,1.03625868,148.11,148.02,16.2]
[1726811507129,3.3771,148.05,148.02,16.2]
[1726811507327,16.2,148.1,148.02,16.2]
[1726811507926,16.2,148.12,148.02,16.2]
[1726811508131,16.2,148.12,148.03,16.2]
[1726811508536,3.3764,148.08,148.04,3.3772]
[1726811508739,16.2,148.12,148.03,16.2]
[1726811509037,3.376,148.1,148.03,16.2]
[1726811509341,1.7407,148.13,148.03,16.2]
[1726811509737,3.3761,148.1,148.05,3.377]
[1726811509936,1.7407,148.13,148.05,3.377]
[1726811511841,1.7407,148.13,148.03,19.5773]
[1726811512039,1.7407,148.13,148.03,16.2]
[1726811512440,1.7407,148.13,148.04,3.3771]
[1726811513143,3.3763,148.09,148.04,3.3771]
[1726811513741,1.7407,148.13,148.04,3.3771]
[1726811513937,1.03377443,148.12,148.04,3.3771]
[1726811514137,17.23377443,148.12,148.03,16.2]
[1726811514338,16.2,148.1,148.02,16.2]
[1726811514940,3.3769,148.06,148.02,19.5775]
[1726811516338,1.7407,148.13,148.05,16.2]
[1726811516539,1.03386561,148.12,148.05,16.2]
[1726811516845,3.3761,148.09,148.05,19.5769]
[1726811519847,1.7407,148.13,148.03,16.2]
[1726811520047,16.2,148.1,148.03,16.2]
[1726811520442,16.2,148.1,148.01,16.2]
[1726811520644,16.2,148.1,148.02,3.3776]
[1726811522140,1.03429503,148.09,148.01,16.2]
[1726811523241,1.03429503,148.09,148.01,19.5778]
[1726811524444,3.377,148.05,148.01,19.5778]
[1726811524841,16.2,148.1,148.02,3.3776]
[1726811525047,1.03423459,148.09,148.02,3.3776]
[1726811525241,1.03423459,148.09,148.02,16.2]
[1726811525448,16.2,148.1,148.02,16.2]
[1726811525644,16.2,148.1,148.03,3.3774]
[1726811526144,3.3765,148.08,148.04,3.3772]
[1726811526347,16.2,148.12,148.02,16.2]
[1726811526547,1.03484155,148.11,148.02,16.2]
[1726811526744,3.3763,148.08,148.04,3.3771]
[1726811527250,1.7407,148.13,148.04,16.2]
[1726811527448,1.03479221,148.12,148.04,16.2]
[1726811527845,1.7407,148.13,148.04,16.2]
[1726811528250,1.03473478,148.12,148.04,16.2]
[1726811528841,17.23473478,148.12,148.02,16.2]
[1726811529042,16.2,148.12,148.02,16.2]
[1726811529245,1.03467433,148.11,148.02,16.2]
[1726811529453,3.3765,148.08,148.04,3.3772]
[1726811532954,3.3768,148.06,148.02,3.3776]
[1726811534955,3.3772,148.05,148.01,3.3779]
[1726811536549,3.3772,148.05,148.02,3.3777]
[1726811538055,1.6888,148.09,148.03,3.3773]
[1726811539456,1.6888,148.09,148.02,3.3777]
[1726811539659,3.3769,148.06,148.02,3.3777]
[1726811539854,1.6888,148.09,148.0,16.2]
[1726811540057,16.2,148.08,147.99,16.2]
[1726811540257,3.3772,148.05,148.01,3.3778]
[1726811541153,3.3769,148.06,148.02,3.3776]
[1726811541358,16.2,148.08,148.02,3.3776]
[1726811542959,3.377,148.05,148.02,3.3776]
[1726811543959,3.377,148.05,148.02,13.7576]
[1726811544354,3.377,148.05,148.02,3.3776]
[1726811544550,3.377,148.05,148.02,13.7576]
[1726811544862,3.377,148.05,148.02,10.38]
[1726811546957,10.38,148.03,147.98,4.9972]
[1726811547162,10.38,148.0,147.95,10.38]
[1726811547556,3.37287104,148.03,147.94,10.38]
[1726811547557,10.38,147.99,147.94,10.38]
[1726811547761,1.7792,148.07,147.93,10.38]
[1726811547762,10.38,147.98,147.93,10.38]
[1726811547950,1.7792,148.07,147.91,23.19116712]
[1726811547951,16.23,148.0,147.91,23.19116712]
[1726811548157,3.379,147.97,147.93,3.3797]
[1726811548757,3.3787,147.98,147.94,3.3794]
[1726811548964,16.23,148.02,147.93,16.23]
[1726811549465,19.55826754,148.03,147.94,16.23]
[1726811549674,16.23,148.03,147.94,16.23]
[1726811550063,3.3782,148.0,147.96,3.3789]
[1726811550266,16.23,148.03,147.94,16.23]
[1726811550670,3.378,148.01,147.97,3.3787]
[1726811550875,16.23,148.03,147.94,16.23]
[1726811551470,19.63060649,148.05,147.96,16.23]
[1726811551669,1.03590652,148.04,147.96,16.23]
[1726811552170,3.3779,148.02,147.97,3.3788]
[1726811552971,16.23,148.05,147.96,16.23]
[1726811553171,16.23,148.05,147.97,1.7712]
[1726811553573,18.0092,148.07,147.98,19.61392374]
[1726811553776,1.7792,148.07,148.0,16.23]
[1726811553973,18.0092,148.07,147.98,19.6347]
[1726811554180,3.3771,148.05,147.98,19.6347]
[1726811554373,3.3771,148.05,147.99,3.32172796]
[1726811555868,18.0092,148.07,147.98,23.09837015]
[1726811556268,16.23,148.05,147.98,5.0048]
[1726811556476,16.23,148.03,147.97,1.7712]
[1726811557172,16.23,148.06,147.97,1.7712]
[1726811557377,1.7792,148.07,147.98,16.23]
[1726811557877,1.7792,148.07,147.99,16.23]
[1726811558777,3.3772,148.05,148.01,3.3779]
[1726811558977,1.7792,148.07,147.99,16.23]
[1726811560380,3.377,148.06,147.99,16.23]
[1726811561575,3.3771,148.05,148.01,3.3777]
[1726811561772,1.7792,148.07,147.99,16.23]
[1726811561973,1.6888,148.09,148.01,16.23]
[1726811562281,3.3767,148.07,148.01,16.23]
[1726811562679,3.3767,148.07,148.03,3.3774]
[1726811563579,3.3768,148.06,148.02,3.3776]
[1726811564183,3.3771,148.05,148.01,3.3778]
[1726811564477,1.6888,148.09,148.01,3.3778]
[1726811565877,1.03627971,148.08,148.01,3.3778]
[1726811566075,1.6888,148.09,148.01,3.3778]
[1726811566076,3.3772,148.05,148.01,3.3778]
[1726811567282,3.3775,148.03,147.99,19.6006]
[1726811567476,16.23,148.08,147.99,19.6006]
[1726811567778,3.3777,148.02,147.98,3.3786]
[1726811567971,1.0358105,148.07,147.99,10.38]
[1726811567972,10.38,148.03,147.99,10.38]
[1726811568473,3.3782,148.0,147.97,12.1512]
[1726811568678,3.3782,148.0,147.97,10.38]
[1726811569079,3.3781,148.01,147.97,13.7588]
[1726811569576,3.3782,148.0,147.97,13.7588]
[1726811570783,3.3782,148.0,147.97,10.38]
[1726811571382,3.3782,148.0,147.97,13.7588]
[1726811572181,3.3782,148.0,147.97,3.3788]
[1726811572386,3.3782,148.0,147.98,10.38]
[1726811574176,3.378,148.01,147.98,10.38]
[1726811574387,3.3724,148.07,147.95,10.38]
[1726811574388,10.38,148.0,147.95,10.38]
[1726811574587,3.379,147.97,147.95,10.38]
[1726811575985,10.38,147.99,147.95,10.38]
[1726811576687,3.3787,147.98,147.95,10.38]
[1726811576875,10.38,147.99,147.95,10.38]
[1726811577278,10.38,147.99,147.94,10.38]
[1726811577785,3.3789,147.97,147.94,10.38]
[1726811577987,5.0428,148.01,147.95,10.38]
[1726811578180,5.0428,148.01,147.91,4.9915]
[1726811578388,5.0428,148.01,147.97,10.38]
[1726811578389,5.1292,148.01,147.97,10.38]
[1726811578687,3.378,148.01,147.97,10.38]
[1726811580492,3.3782,148.0,147.97,10.38]
[1726811583592,3.3782,148.0,147.97,13.7588]
[1726811585183,3.3782,148.0,147.97,3.3788]
[1726811585385,3.3782,148.0,147.91,4.9915]
[1726811585386,10.38,147.99,147.91,4.9915]
[1726811585601,10.38,147.96,147.92,10.38]
[1726811585887,3.3792,147.96,147.93,10.38]
[1726811586283,3.3792,147.96,147.92,10.38]
[1726811586483,3.3792,147.96,147.92,13.7598]
[1726811586794,3.3794,147.95,147.91,3.3736]
[1726811586996,3.3794,147.95,147.92,10.38]
[1726811587189,10.38,147.96,147.91,1.6981]
[1726811587790,10.38,147.96,147.91,5.0783]
[1726811588595,3.3795,147.95,147.91,5.0783]
[1726811588895,3.3795,147.95,147.91,3.3802]
[1726811589090,10.38,147.92,147.85,1.6898]
[1726811589290,10.38,147.9,147.85,12.0698]
[1726811589594,13.7608,147.89,147.85,3.3815]
[1726811589790,10.38,147.87,147.82,10.38]
[1726811589986,10.38,147.84,147.81,1.6898]
[1726811590395,3.40118832,147.92,147.79,145.6]
[1726811590688,10.38,147.84,147.79,135.22]
[1726811590889,1.7472,147.94,147.8,10.38]
[1726811591092,10.38,147.88,147.83,10.38]
[1726811591389,5.04648435,147.94,147.85,10.38]
[1726811591582,10.38,147.91,147.85,10.38]
[1726811591983,3.3804,147.91,147.86,3.3813]
[1726811592689,19.6099,147.93,147.88,3.3808]
[1726811592889,1.7472,147.94,147.88,16.23]
[1726811593396,1.7472,147.94,147.89,3.3806]
[1726811594090,5.1269,147.94,147.89,3.3806]
[1726811594890,1.7472,147.94,147.89,3.3806]
[1726811595788,5.1267,147.94,147.89,3.3806]
[1726811596189,17.9772,147.94,147.86,16.23]
[1726811596387,16.23,147.92,147.84,16.23]
[1726811596589,16.23,147.92,147.82,16.23]
[1726811597197,3.3804,147.91,147.86,3.3813]
[1726811597600,16.23,147.92,147.86,3.3813]
[1726811598801,3.3805,147.9,147.86,3.3813]
[1726811598995,16.23,147.92,147.85,3.3815]
[1726811599398,3.3805,147.9,147.85,3.3815]
[1726811600703,3.3807,147.89,147.85,3.3815]
[1726811601499,3.3805,147.9,147.84,16.23]
[1726811602407,3.3805,147.9,147.86,3.3813]
[1726811602705,1.7472,147.94,147.84,19.62659021]
[1726811602706,17.9772,147.94,147.84,19.62659021]
[1726811603298,17.9772,147.94,147.86,16.23]
[1726811604603,3.3799,147.93,147.86,16.23]
[1726811605101,5.1268,147.94,147.9,3.3804]
[1726811605301,3.3796,147.94,147.9,3.3804]
[1726811606308,3.3798,147.93,147.9,3.3804]
[1726811606807,16.23,147.98,147.91,3.3802]
[1726811607007,19.53740836,147.98,147.91,3.3802]
[1726811607401,3.3793,147.96,147.91,3.3802]
[1726811607905,3.3794,147.95,147.91,3.3802]
[1726811608405,3.3794,147.95,147.9,3.3804]
[1726811609007,3.3795,147.94,147.9,3.3804]
[1726811610508,3.3794,147.95,147.91,3.3802]
[1726811610710,3.45,148.01,147.9,16.23]
[1726811611005,3.3789,147.97,147.93,3.3796]
[1726811611410,3.3791,147.96,147.92,3.3799]
[1726811613309,3.3793,147.95,147.92,3.3799]
[1726811616801,3.3797,147.94,147.9,19.6103]
[1726811617006,16.23,147.98,147.9,3.3803]
[1726811617208,16.23,147.98,147.89,1.735]
[1726811617711,16.23,147.98,147.91,3.3802]
[1726811618118,19.68,148.01,147.92,16.23]
[1726811618301,1.03313902,148.0,147.92,16.23]
[1726811618504,19.68,148.01,147.92,16.23]
[1726811618803,1.03311734,148.0,147.93,3.3795]
[1726811619006,16.23,147.99,147.93,3.3795]
[1726811619205,16.23,147.99,147.92,16.23]
[1726811619703,3.3789,147.97,147.93,3.3796]
[1726811620314,3.3793,147.96,147.92,3.3799]
[1726811623108,3.3794,147.95,147.92,3.3799]
[1726811623415,3.3794,147.95,147.9,17.6518]
[1726811623416,3.3794,147.95,147.91,3.3802]
[1726811624920,3.3794,147.95,147.92,3.38]
[1726811626421,3.3796,147.94,147.89,3.4524]
[1726811626615,3.3796,147.94,147.89,1.735]
[1726811627322,3.3796,147.94,147.9,3.3803]
[1726811627522,3.3796,147.94,147.89,1.735]
[1726811628620,3.3796,147.94,147.91,3.3801]
[1726811629622,16.23,147.97,147.92,3.3799]
[1726811629623,3.3794,147.95,147.92,3.3799]
[1726811632927,3.3791,147.96,147.93,3.3797]
[1726811633321,16.23,147.99,147.93,3.3797]
[1726811634027,16.23,147.99,147.9,16.23]
[1726811634220,19.68,148.01,147.92,16.23]
[1726811634427,1.03386462,148.0,147.92,16.23]
[1726811634824,3.3786,147.98,147.95,3.3793]
[1726811635023,3.3786,147.98,147.92,16.23]
[1726811635228,19.68,148.01,147.9,16.23]
[1726811635428,16.23,147.99,147.9,16.23]
[1726811635630,16.23,147.95,147.89,1.735]
[1726811635933,10.4,147.93,147.89,1.735]
[1726811636129,10.4,147.93,147.9,3.3804]
[1726811637334,10.4,147.93,147.89,3.3806]
[1726811637532,10.4,147.92,147.87,10.4]
[1726811637724,10.4,147.91,147.85,4.0626]
[1726811637930,16.23,147.92,147.85,4.0626]
[1726811638427,16.23,147.92,147.87,3.381]
[1726811639234,3.3803,147.91,147.87,3.381]
[1726811640626,3.3805,147.9,147.87,3.381]
[1726811641034,16.23,147.9,147.83,135.26]
[1726811641738,16.23,147.89,147.83,135.26]
[1726811641934,17.6468,147.89,147.83,135.26]
[1726811642127,17.6468,147.89,147.81,1.4265]
[1726811642128,3.3813,147.87,147.82,3.3821]
[1726811642533,1.394,147.88,147.82,3.3821]
[1726811642732,1.394,147.88,147.77,4.158]
[1726811642733,3.3817,147.85,147.8,3.3827]
[1726811643038,16.23,147.87,147.8,3.3827]
[1726811644039,3.3816,147.85,147.8,3.3827]
[1726811645638,3.3819,147.84,147.8,3.3827]
[1726811649743,3.3814,147.86,147.82,3.3822]
[1726811649948,2.7986,147.88,147.79,16.23]
[1726811650751,3.3817,147.85,147.81,3.3823]
[1726811651045,2.7986,147.88,147.81,16.23]
[1726811651250,3.3813,147.87,147.82,3.3821]
[1726811651650,3.3813,147.87,147.81,16.23]
[1726811652055,3.3814,147.86,147.82,3.3822]
[1726811653448,1.394,147.88,147.81,16.23]
[1726811653656,16.23,147.92,147.83,16.23]
[1726811653856,20.3063,147.94,147.85,16.23]
[1726811654047,4.0763,147.94,147.87,16.23]
[1726811654252,1.4218,147.94,147.87,16.23]
[1726811654956,1.4218,147.94,147.89,3.3805]
[1726811654957,3.3799,147.93,147.89,3.3805]
[1726811656060,3.3796,147.94,147.9,3.3804]
[1726811656256,17.5543,147.99,147.9,16.23]
[1726811656758,17.5543,147.99,147.91,3.38]
[1726811657056,17.5543,147.99,147.9,16.23]
[1726811657057,1.03360765,147.98,147.9,16.23]
[1726811657265,3.3794,147.95,147.9,3.3804]
[1726811658255,3.3794,147.95,147.91,3.3802]
[1726811658460,3.3791,147.96,147.91,3.3802]
[1726811659458,3.3794,147.95,147.91,3.3802]
[1726811660062,3.3791,147.96,147.92,3.38]
[1726811660564,1.3243,147.99,147.92,16.23]
[1726811661257,1.3541,148.0,147.94,16.23]
[1726811661653,3.3785,147.99,147.94,19.6094]
[1726811662856,3.3786,147.98,147.94,19.6094]
[1726811663058,3.3786,147.98,147.94,3.3794]
[1726811664458,3.3784,147.99,147.95,3.3793]
[1726811664664,16.23,148.03,147.94,16.23]
[1726811664963,19.68246145,148.03,147.94,16.23]
[1726811665364,19.68246145,148.03,147.94,19.55736002]
[1726811665764,3.3781,148.01,147.94,19.55736002]
[1726811666064,19.68246145,148.03,147.94,16.23]
[1726811666260,16.23,148.03,147.94,16.23]
[1726811666466,3.3783,148.0,147.96,3.379]
[1726811667663,3.3779,148.02,147.98,3.3786]
[1726811669058,2.7529,148.04,147.98,16.23]
[1726811669258,1.4206,148.04,147.98,16.23]
[1726811669462,3.3778,148.02,147.96,16.23]
[1726811669963,3.3786,147.99,147.95,4.775]
[1726811670172,3.3786,147.99,147.95,1.3959]
[1726811670870,3.3786,147.99,147.95,4.7751]
[1726811671070,3.3786,147.98,147.95,1.3959]
[1726811671264,16.23,148.01,147.95,1.3959]
[1726811671670,3.3785,147.99,147.95,4.775]
[1726811672269,3.3785,147.99,147.95,3.3791]
[1726811672869,3.3787,147.98,147.95,3.3791]
[1726811673564,16.23,148.01,147.95,3.3791]
[1726811673565,3.3784,147.99,147.95,3.3791]
[1726811673766,3.3784,147.99,147.96,3.379]
[1726811675374,3.3786,147.98,147.93,16.23]
[1726811675566,16.23,148.01,147.93,16.23]
[1726811675766,16.23,148.01,147.93,3.3797]
[1726811675968,3.3789,147.97,147.93,3.3797]
[1726811676470,16.23,147.99,147.93,3.3797]
[1726811677671,3.379,147.97,147.93,3.3797]
[1726811679273,3.379,147.97,147.94,3.3795]
[1726811681374,3.3784,147.99,147.95,3.3793]
[1726811681568,16.23,148.01,147.95,3.3793]
[1726811681769,18.9218,148.03,147.93,16.23]
[1726811681975,3.3784,147.99,147.93,16.23]
[1726811682276,3.3784,147.99,147.9,1.419]
[1726811682277,16.23,148.01,147.91,16.23]
[1726811683776,16.23,148.0,147.91,16.23]
[1726811683977,16.23,147.98,147.9,1.419]
[1726811684378,17.6388,147.98,147.91,3.38]
[1726811684679,21.10376317,147.98,147.91,3.38]
[1726811684873,3.3795,147.95,147.91,3.38]
[1726811685176,21.10376317,147.98,147.88,152.7581]
[1726811685579,21.10376317,147.98,147.88,139.9088]
[1726811685777,16.23,147.95,147.88,138.6007]
[1726811686366,16.23,147.92,147.83,1.3807]
[1726811686572,1.3825,147.91,147.83,1.3807]
[1726811687880,3.3809,147.88,147.84,3.3818]
[1726811690277,3.3809,147.88,147.83,1.3807]
[1726811690278,3.3807,147.89,147.85,3.3816]
[1726811690479,1.3825,147.91,147.83,17.6107]
[1726811691480,3.3806,147.9,147.83,17.6107]
[1726811691877,1.3825,147.91,147.83,17.6107]
[1726811692779,3.3805,147.9,147.83,17.6107]
[1726811692983,2.7562,147.97,147.87,16.23]
[1726811693279,4.44715226,147.96,147.87,16.23]
[1726811693484,3.38,147.93,147.89,3.3805]
[1726811694284,3.38,147.92,147.89,3.3805]
[1726811694884,3.38,147.92,147.88,3.3808]
[1726811695273,16.23,147.95,147.87,16.23]
[1726811695677,16.23,147.95,147.88,3.3809]
[1726811696185,17.6479,147.95,147.88,3.3809]
[1726811696374,3.3802,147.91,147.87,19.611]
[1726811697180,3.3805,147.9,147.86,3.3813]
[1726811697485,16.23,147.93,147.85,16.23]
[1726811698484,3.3805,147.9,147.86,3.3812]
[1726811701684,3.3807,147.89,147.86,3.3812]
[1726811702076,16.23,147.93,147.86,3.3812]
[1726811702281,3.3805,147.9,147.86,3.3812]
[1726811703084,3.3803,147.91,147.87,3.381]
[1726811703284,3.3803,147.91,147.85,16.23]
[1726811703580,3.3802,147.92,147.88,3.3809]
[1726811703884,17.6479,147.95,147.88,3.3809]
[1726811704581,17.6479,147.95,147.87,16.23]
[1726811705790,17.6479,147.95,147.87,19.611]
[1726811705979,17.6479,147.95,147.87,16.23]
[1726811706785,3.3802,147.92,147.88,3.3809]
[1726811707386,17.6479,147.95,147.87,19.6111]
[1726811707387,3.3803,147.91,147.87,19.6111]
[1726811708382,3.3806,147.9,147.86,3.3812]
[1726811710487,3.3803,147.91,147.87,3.381]
[1726811710681,3.3803,147.91,147.85,16.23]
[1726811711786,3.3803,147.91,147.87,3.381]
[1726811711988,3.3803,147.91,147.88,10.4]
[1726811712383,3.3805,147.9,147.87,10.4]
[1726811712985,3.3803,147.91,147.88,10.4]
[1726811713183,1.4179,147.95,147.9,10.4]
[1726811713486,13.1562,147.97,147.92,10.4]